Cogmind - Beta 12 @@@ ROGUE MODE // 2023.07.11 @ 12:56:06 Player: ZOT Result: Destroyed by Y-45 Defender with Heavy Assault Rifle Performance ------------- Evolutions (2) 1000 Regions Visited (3) 600 Robots Destroyed (27) 135 Value Destroyed (687) 687 Prototype IDs (4) 80 Alien Tech Used (0) 0 Bonus (0) 0 TOTAL SCORE: 2502 Bonus ------- None Cogmind --------- Core Integrity 0/550 Matter 222/300 Energy 86/100 System Corruption 3% Temperature Cool (9) Movement Core (150) Ox2 Location -8/Materials Parts ------- > --- POWER (2) -------- (None) > --- PROPULSION (4) --- Improved Hover Unit > --- UTILITY (3) ------ Signal Interpreter Actuator Array > --- WEAPON (2) ------- Maul > --- INVENTORY (5) ---- Weight Redist. System Seismic Detector Peak State ------------ > --- POWER ------------ (None) > --- PROPULSION ------- Improved Hover Unit Improved Hover Unit Improved Hover Unit Improved Hover Unit > --- UTILITY ---------- Signal Interpreter Actuator Array > --- WEAPON ----------- Maul Maul > --- INVENTORY -------- Weight Redist. System Seismic Detector [Rating: 16] Favorites ----------- Power Light Ion Engine Engine Light Ion Engine Propulsion Flight Unit Leg Aluminum Leg Hover Unit Improved Hover Unit Flight Unit Flight Unit Utility Seismic Detector Device Seismic Detector Processor Signal Interpreter Weapon Small Laser Energy Gun Small Laser Launcher Improved Grenade Launcher Impact Weapon Maul Build | -11 -10 -9 -8 ------- Run | Jun Mat Mat Mat Slots Evolved 4 | . . 2 2 Power 1 | . . . 1 Propulsion 2 | . . 2 . Utility 1 | . . . 1 Weapon . | . . . . Parts Attached 28 | 8 2 7 11 Power 1 | 1 . . . Engine 1 | 1 . . . Core . | . . . . Reactor . | . . . . Propulsion 12 | 2 2 4 4 Treads . | . . . . Leg 2 | 2 . . . Wheel . | . . . . Hover 4 | . . . 4 Flight 6 | . 2 4 . Utility 7 | 3 . 1 3 Device 6 | 3 . 1 2 Storage . | . . . . Processor 1 | . . . 1 Hackware . | . . . . Protection . | . . . . Artifact . | . . . . Weapon 8 | 2 . 2 4 Energy Gun 3 | 2 . 1 . Energy Cannon . | . . . . Ballistic Gun . | . . . . Ballistic Cannon . | . . . . Launcher 3 | . . 1 2 Special Weapon . | . . . . Impact Weapon 2 | . . . 2 Slashing Weapon . | . . . . Piercing Weapon . | . . . . Special Melee Weapon . | . . . . Unidentified Prototypes . | . . . . Parts Lost 15 | . . 1 14 Power 1 | . . . 1 Propulsion 8 | . . 1 7 Utility 2 | . . . 2 Weapon 4 | . . . 4 Highest Loss Streak 8 | . . 1 8 To Critical Strikes . | . . . . Average Slot Usage (%) 79 | . 100 94 56 Engine 8 | . 14 11 2 Leg 6 | . 22 . . Hover 5 | . . . 11 Flight 18 | . 5 41 12 Device 17 | . 28 19 9 Processor 3 | . . . 8 Energy Gun 17 | . 28 21 7 Impact Weapon 1 | . . . 3 Naked Turns . | . . . . Heaviest Build 11 | 7 7 9 11 Greatest Support 21 | 20 20 12 21 Greatest Overweight (x) 1 | . 1 1 1 Average Overweight (x) . | . . . . Largest Inventory Capacity 5 | 5 5 5 5 Average Capacity 5 | 5 5 5 5 Most Carried 5 | 5 5 4 5 Average Carried 3 | 4 4 3 2 Final Capacity 5 | 5 5 5 5 Final Carried 5 | 5 5 3 2 Class Distribution -------------------- 87% | Mutant 7% | Scavenger-Scout 4% | Scout Dominant Class ---------------- Mutant | -10/Materials Mutant | -9/Materials Mutant | -8/Materials Resources | -11 -10 -9 -8 ----------- Run | Jun Mat Mat Mat Matter Collected 441 | 280 20 2 139 Remotely . | . . . . Salvage Created 741 | 189 24 26 502 Parts 44 | 17 3 3 21 Haulers Intercepted . | . . . . Recyclers Shooed 3 | 1 . . 2 Parts Field Recycled . | . . . . Retrieved Matter . | . . . . Parts Self-Destructed . | . . . . Prevented . | . . . . Kills | -11 -10 -9 -8 ------- Run | Jun Mat Mat Mat Combat Hostiles Destroyed 17 | . . 3 14 Melee 3 | . . . 3 Guns 6 | . . 1 5 AOE 7 | . . 2 5 Classes Destroyed 10 | 2 1 1 6 Worker 1 | . . . 1 Builder 1 | . . . 1 Tunneler 5 | 5 . . . Recycler 1 | 1 . . . Operator 1 | . . . 1 Watcher 1 | . 1 . . Swarmer 6 | . . 3 3 Grunt 9 | . . . 9 Duelist 1 | . . . 1 Sentry 1 | . . . 1 Best Kill Streak 8 | 3 1 3 8 Combat Bots Only 5 | . . 3 5 Max Kills in Single Turn 3 | 1 1 3 2 Gunslinging . | . . . . Exploded 2 | . . 2 2 Melee 1 | . . . 1 Uniques/NPCs Destroyed . | . . . . Combat | -11 -10 -9 -8 -------- Run | Jun Mat Mat Mat Damage Taken 1301 | . . 92 1209 Core 558 | . . 7 551 Absorbed by Shields . | . . . . Regen/Repaired (Parts) 15 | . . 15 . Core Remaining (%) 99 | 100 100 98 . Volleys Fired 49 | 13 2 2 32 Largest 2 | 2 2 2 2 Hottest 80 | 80 80 70 80 Shots Fired 92 | 26 4 4 58 Gun 82 | 26 4 2 50 Cannon . | . . . . Launcher 10 | . . 2 8 Special . | . . . . Kinetic . | . . . . Thermal 82 | 26 4 2 50 Explosive 10 | . . 2 8 Electromagnetic . | . . . . Robot Hit Streak 7 | 5 2 3 7 Robot Miss Streak 5 | 5 2 . 2 Penetration Max . | . . . . Secondary Targets . | . . . . Shots Hit Robots 64 | 14 2 1 47 Core Hits 46 | 7 2 4 33 Critical Kills 1 | . . . 1 Critical Parts Destroyed 1 | . . . 1 Critical Strikes 2 | . . . 2 Smash 2 | . . . 2 Melee Attacks 14 | . . . 14 Impact 14 | . . . 14 Slashing . | . . . . Piercing . | . . . . Sneak Attacks . | . . . . Combat Hostiles . | . . . . Follow-up Attacks . | . . . . Damage Inflicted 1766 | 176 21 102 1467 Guns 581 | 176 21 11 373 Cannons . | . . . . Explosions 783 | . . 91 692 Melee 387 | . . . 387 Ramming 15 | . . . 15 Kinetic . | . . . . Thermal 581 | 176 21 11 373 Explosive 783 | . . 91 692 Electromagnetic . | . . . . Impact 387 | . . . 387 Slashing . | . . . . Piercing . | . . . . Highest Corruption 3 | . . . 3 Average Corruption 2 | . . . 2 Corruption Purged . | . . . . Corruption Blocked . | . . . . Effects 1 | . . . 1 Parts Rejected 1 | . . . 1 Overload Shots . | . . . . Overflow Damage 114 | . . 14 100 Projectiles . | . . . . Explosions 59 | . . 14 45 Melee 55 | . . . 55 Knockbacks 2 | . . . 2 Impact 2 | . . . 2 Kinetic . | . . . . Secondary . | . . . . Self-Inflicted Damage 85 | . . 34 51 Shots 2 | . . 1 1 Rammed 3 | . . . 3 Targets Rammed 3 | . . . 3 Kicked . | . . . . Crushed . | . . . . Highest Temperature 162 | 72 36 21 162 Average Temperature 55 | 27 20 11 79 Received Heat Transfer 612 | . . 27 585 Siege Activations . | . . . . Robots Corrupted . | . . . . Combat Hostiles . | . . . . Parts Fried 2 | . . . 2 Impact Corruptions 2 | . . . 2 Robots Melted . | . . . . Combat Hostiles . | . . . . Parts Melted . | . . . . Heat Transferred 1325 | 400 50 25 850 Parts Sabotaged . | . . . . Parts Stolen . | . . . . Parts Stripped . | . . . . Power Chain Reactions . | . . . . Missiles Intercepted . | . . . . Alert | -11 -10 -9 -8 ------- Run | Jun Mat Mat Mat Peak Influence 348 | 30 66 205 348 Initial 86 | . 19 27 86 Average 108 | 15 41 146 211 Maximum Alert Level 1 | . . 1 1 Low Security (%) 82 | 100 100 90 48 Level 1 17 | . . 9 51 Level 2 . | . . . . Level 3 . | . . . . Level 4 . | . . . . Level 5 . | . . . . High Security . | . . . . Max Security . | . . . . Squads Dispatched 5 | . 1 . 4 Investigation 1 | . . . 1 Extermination . | . . . . Reinforcement 2 | . 1 . 1 Assault . | . . . . Garrison 2 | . . . 2 Intercept . | . . . . Searches Triggered . | . . . . Construction Impeded . | . . . . Haulers Reinforced . | . . . . Active Scanning Responses . | . . . . Cargo Convoy Interrupts . | . . . . Stealth | -11 -10 -9 -8 --------- Run | Jun Mat Mat Mat Distress Signals . | . . . . Communications Jammed . | . . . . Distress Signals . | . . . . Times Spotted 26 | . 2 7 17 Peak Tracking Total 10 | . 1 4 10 Tactical Retreats . | . . . . Traps | -11 -10 -9 -8 ------- Run | Jun Mat Mat Mat Traps Triggered 1 | . . . 1 Indirectly . | . . . . Trap Hack Attempts . | . . . . Triggered . | . . . . Disarmed 3 | . . . 3 Reprogrammed . | . . . . Reused . | . . . . Traps Extracted . | . . . . Installed . | . . . . Triggered . | . . . . Machines | -11 -10 -9 -8 ---------- Run | Jun Mat Mat Mat Machines Disabled 3 | . . 3 . Max in Single Turn 2 | . . 2 . Garrison Access 1 | . . . 1 Machines Repaired . | . . . . Machines Sabotaged . | . . . . Overloaded Fab Kills . | . . . . Hacking | -11 -10 -9 -8 --------- Run | Jun Mat Mat Mat Machines Accessed 9 | . 1 4 4 Terminals 7 | . 1 3 3 Fabricators . | . . . . Repair Stations 1 | . . 1 . Recycling Units . | . . . . Scanalyzers . | . . . . Garrison Access 1 | . . . 1 Total Hacks 32 | . 3 14 15 Successful 18 | . 2 9 7 Failed 14 | . 1 5 8 Catastrophic 1 | . . . 1 Database Lockouts . | . . . . Manual 3 | . . 2 1 Terminals 25 | . 3 10 12 Fabricators . | . . . . Repair Stations 4 | . . 4 . Recycling Units . | . . . . Scanalyzers . | . . . . Garrison Access 3 | . . . 3 Terminal Hacks 13 | . 2 5 6 Robot Analysis 1 | . . . 1 Prototype ID Bank 2 | . 1 . 1 Level Access Points 1 | . . 1 . Emergency Access Points 1 | . . 1 . Terminal Index 1 | . . . 1 Alert Level 1 | . . . 1 Locate Traps 1 | . . . 1 Disarm Traps 1 | . . . 1 Investigation Status 1 | . 1 . . Registered Prototypes 1 | . . 1 . Zone Layout 2 | . . 2 . Fabricator Hacks . | . . . . Repair Station Hacks 4 | . . 4 . Scan Component 2 | . . 2 . Repair 2 | . . 2 . Recycling Unit Hacks . | . . . . Scanalyzer . | . . . . Garrison Access Hacks 1 | . . . 1 Seal Access 1 | . . . 1 Unauthorized Hacks . | . . . . Terminals . | . . . . Fabricators . | . . . . Repair Stations . | . . . . Recycling Units . | . . . . Scanalyzers . | . . . . Garrison Access . | . . . . Data Cores Recovered . | . . . . Used . | . . . . Hacking Detections 7 | . 1 3 3 Full Trace Events 1 | . . . 1 Feedback Events . | . . . . Feedback Blocked . | . . . . Robot Schematics Acquired . | . . . . Robots Built . | . . . . Authchips . | . . . . Time . | . . . . Total Robot Build Rating . | . . . . Part Schematics Acquired . | . . . . Parts Built . | . . . . Authchips . | . . . . Time . | . . . . Total Part Build Rating . | . . . . Parts Repaired 2 | . . 2 . Time 64 | . . 64 . Parts Recycled . | . . . . Recycled Matter . | . . . . Retrieved Matter . | . . . . Retrieved Components . | . . . . Parts Scanalyzed . | . . . . Part Schematics Acquired . | . . . . Parts Damaged . | . . . . Bothacking | -11 -10 -9 -8 ------------ Run | Jun Mat Mat Mat Used RIF Installer . | . . . . Robots Hacked . | . . . . Non-combat . | . . . . Combat . | . . . . Robot Hacks Applied . | . . . . Relay Couplers Released . | . . . . Fabnet Peak Effective % . | . . . . Robots Rewired . | . . . . Allies Hacked . | . . . . Hacks Repelled . | . . . . Allies | -11 -10 -9 -8 -------- Run | Jun Mat Mat Mat Total Allies . | . . . . Largest Group . | . . . . Highest-Rated Group . | . . . . Highest-Rated Ally . | . . . . Total Orders . | . . . . Ally Attacks . | . . . . Total Damage . | . . . . Kills . | . . . . Allies Corrupted . | . . . . Allies Melted . | . . . . Intel | -11 -10 -9 -8 ------- Run | Jun Mat Mat Mat Robot Analysis Total 1 | . . . 1 Derelict Logs Recovered . | . . . . Drone Launches . | . . . . Drone Recoveries . | . . . . Exploration | -11 -10 -9 -8 ------------- Run | Jun Mat Mat Mat Turns Passed 825 | 231 168 168 258 Spaces Moved 660 | 149 169 172 170 Core 44 | 13 . . 31 Treads . | . . . . Legs 238 | 136 102 . . Wheels . | . . . . Hover 68 | . . . 68 Flight 310 | . 67 172 71 Fastest Speed 34 | 50 37 34 37 Average Speed 70 | 113 87 37 48 Slowest Speed 130 | 120 130 117 100 Overloaded Moves . | . . . . Propulsion Burnouts . | . . . . Robots Hopped . | . . . . Cave-ins Triggered . | . . . . Exploration Rate (%) 17 | 5 22 21 20 Regions Visited 3 Branch Regions . Pre-discovered Areas . | . . . . Known Exits Taken 1 | . . 1 . Unknown Exits Taken 2 | 1 1 . . Scrap Searched . | . . . . Spaces Dug . | . . . . Terrain Destroyed 39 | . . 6 33 Melee . | . . . . Projectile . | . . . . AOE 39 | . . 6 33 Terrain Rammed . | . . . . Walls Destroyed . | . . . . Machines Disabled . | . . . . Actions | -11 -10 -9 -8 --------- Run | Jun Mat Mat Mat Total 903 | 185 186 270 262 Wait 112 | . . 87 25 Move 657 | 148 168 171 170 Hop . | . . . . Pick Up 32 | 13 7 3 9 Fast Attach 2 | 2 . . . Attach 21 | 6 . 5 10 Detach . | . . . . Swap 5 | . 2 2 1 Drop 10 | 3 7 . . Fire 49 | 13 2 2 32 Melee 12 | . . . 12 Ram 3 | . . . 3 Kick . | . . . . Crush . | . . . . Escape Stasis . | . . . . Rewire . | . . . . Trap . | . . . . Miscellaneous . | . . . . Route ------- -11/Junkyard -10/Materials -9/Materials (discovered 3 exits: *Mat x3) -8/Materials History --------- Turn | Location | Event 6 | -11/Junkyard | Discovered new exit (range 15) 232 | -11/Junkyard | Entered Materials 313 | -10/Materials | Build established: Mutant 397 | -10/Materials | Discovered new exit (range 6) 400 | -10/Materials | Entered another Materials area 400 | -9/Materials | Evolved 2 slots: Propulsion x2 411 | -9/Materials | Identified exit to Materials 466 | -9/Materials | Repaired Flight Unit 506 | -9/Materials | Repaired Imp. Terrain Scanner 568 | -9/Materials | Entered another Materials area 568 | -8/Materials | Evolved 2 slots: Power x1, Utility x1 594 | -8/Materials | Garrison activated, responded to threat 667 | -8/Materials | Lost 3 parts (1p2n) 698 | -8/Materials | Core integrity fell below 50% 726 | -8/Materials | Core integrity fell below 20% 741 | -8/Materials | Lost 8 parts (2n2u4w) 826 | -8/Materials | Destroyed by Y-45 Defender with Heavy Assault Rifle Last Messages --------------- 00771_ Acquired Actuator Array. 00776_ G-47 Trooper knocked back. 00780_ G-50 Soldier knocked back. 00794_ G-47 Trooper destroyed. 00797_ Imp. Hover Unit destroyed. 00803_ G-47 Trooper suffers critical hit (Smash). 00803_ Destroyed Lgt. Nuclear Core. 00803_ G-47 Trooper system corrupted by crushing effect. 00805_ G-47 Trooper misfires. 00806_ Destroyed Particle Gun. 00806_ G-47 Trooper system corrupted by crushing effect. 00807_ G-47 Trooper system terminally corrupted. 00807_ Aluminum Leg fried. 00808_ Acquired 25 matter. 00808_ Imp. Hover Unit destroyed. 00809_ G-47 Trooper destroyed. 00810_ Acquired 31 matter. 00812_ System corrupted: Maul rejected. 00821_ G-50 Soldier suffers critical hit (Smash). 00821_ G-50 Soldier destroyed. Map ----- +----------------------------------------------------+ | ?????????????????????????????? | | ?????????????????????????????? | | ?????????????????????????????? | | ?????????????????????????????? | | ?????????????????????????????? | | ?????????????????????????????? | | ?????????????????????????????? | | ?????????????????????????????? | | ?????????????????????????????? | | ?????????????????????????????? | | ?????????????????????????????? | | ?????????????????????????????? | | ?????????????????????????????? | | ?????????????????????????????? | | ?????????????????????????????? | | ?????????????????????????????? | | ?????????????????????????????? | | ?????????????????????????????? | | ?#######?????????????????????? | | ?# #?????????????????????? | | ?# [ / #?????????????????????? | | ?# #?????????????????????? | | ?# "" #?????????????????????? | | ?# "Y #?????????????????????? | | ?# "" #?????????????????????? | | ?# @%#?????????????????????? | | ??####Y#?????????????????????? | | ?????#g#?##########??????????? | | ?????# #?# #??????????? | | ?????# #?# """"" #??????????? | | ?????# #?# """"" #??????????? | | ###### #?# """"" #??????????? | | # # #?# #??????????? | | # / #?# """"" #??????????? | | # # #?# """"" #??????????? | | # # #?# """"" #?????## ?? | | # + #?# #?????+ ?? | | # # ######"#####?????# ?? | | # # #????????# ? | | # # /] ! ########## ##+ | | # # + """ ## # | | ####### ## "Y" ## # " | | ??????# ## ? ## / " | | ??????# #? ? ## # " | | ??????# #?? ## # | | ??????# % = #??? # ## | | ??????# == #### # | | ??????# [ | | ??????# / | | ??????## ####### | +----------------------------------------------------+ Best States ------------- Heat Dissipation 31 Energy Generation 10 Energy Capacity 125 Matter Stores 300 Matter Capacity 300 Sight Range 16 Robot Scan Range 14 Terrain Scan Range 16 Terrain Scan Density 10 Evasion (%) 62 Item Schematics ----------------- None Robot Schematics ------------------ None Fabricated ------------ Nothing Alien Tech Used ----------------- None Achievements -------------- None Challenges ------------ None Game ------ Seed ShieldShieldFlail Manual? 0 Play Time 00:19:25 Cumulative 50.5 hours Start 2023.07.11 @ 12:37:37 End 2023.07.11 @ 12:56:06 Sessions 1 Manual Loads 0 Difficulty Rogue Special Mode None Game No. 67 Rogue 67 Adventurer 0 Explorer 0 Win Type - Total 0 Types 0/0/0/0/0/0/0/0/0 Lore% 17 Gallery% 33 Achievement% 21 Wizard Run 0 Options --------- ASCII 0 Keyboard 0 Movement Mouse Keybinds 0 Fullscreen 1 Font 24/Smallcaps Map View 76x50 Tactical HUD 1 Map Filters NONE Filters NONE Steam 1 RUN: 308318a7-ff52-4563-a7ac-bd9429f0d9db